fUST/lending_fUST_20260118
["ID","MTS","AMOUNT","RATE_DAILY","PERIOD"]
[402378304,1768669851694,-748.62,0.00016438,3]
[402378306,1768669851704,-1203.14,0.00016438,3]
[402378308,1768669851714,-500.0,0.00016438,3]
[402378310,1768669851723,-500.0,0.00016438,3]
[402378312,1768669851733,-500.0,0.00016438,3]
[402378314,1768669851743,-500.0,0.00016438,3]
[402378316,1768669851752,-940.17,0.00016438,3]
[402378318,1768669851761,-907.89,0.00016438,3]
[402378320,1768669851771,-500.0,0.00016438,3]
[402378321,1768669851780,-500.0,0.00016438,3]
[402378323,1768669851789,-500.0,0.00016438,3]
[402378325,1768669851798,-500.0,0.00016438,3]
[402378327,1768669851808,-500.0,0.00016438,3]
[402378329,1768669851818,-500.0,0.00016438,3]
[402378331,1768669851827,-1259.96,0.00016438,3]
[402378333,1768669851836,-500.0,0.00016438,3]
[402378335,1768669851847,-500.0,0.00016438,3]
[402378337,1768669851856,-962.36,0.00016438,3]
[402378339,1768669851865,-500.0,0.00016438,3]
[402378341,1768669851874,-500.0,0.00016438,3]
[402378343,1768669851884,-500.0,0.00016438,3]
[402378345,1768669851893,-500.0,0.00016438,3]
[402378347,1768669851903,-500.0,0.00016438,3]
[402378349,1768669851912,-606.69,0.00016438,3]
[402378351,1768669851921,-500.0,0.00016438,3]
[402378352,1768669851930,-500.0,0.00016438,3]
[402378354,1768669851940,-500.0,0.00016438,3]
[402378356,1768669851950,-1903.61,0.00016438,3]
[402378358,1768669851960,-517.81430866,0.00016438,3]
[402378360,1768669851970,-500.0,0.00016438,3]
[402378362,1768669851979,-500.0,0.00016438,3]
[402378364,1768669851988,-500.0,0.00016438,3]
[402378366,1768669851998,-500.0,0.00016438,3]
[402378368,1768669852008,-500.0,0.00016438,3]
[402378370,1768669852017,-500.0,0.00016438,3]
[402378372,1768669852027,-500.0,0.00016438,3]
[402378374,1768669852036,-500.0,0.00016438,3]
[402378376,1768669852045,-172.6105479,0.00016438,3]
[402378378,1768669852054,-1200.0,0.00016438,2]
[402378380,1768669852064,-500.0,0.00016438,3]
[402378382,1768669852074,-500.0,0.00016438,3]
[402378384,1768669852083,-500.0,0.00016438,3]
[402378386,1768669852092,-1317.86,0.00016438,3]
[402378388,1768669852101,-500.0,0.00016438,3]
[402378390,1768669852110,-500.0,0.00016438,3]
[402378392,1768669852119,-500.0,0.00016438,3]
[402378394,1768669852128,-500.0,0.00016438,3]
[402378396,1768669852138,-500.0,0.00016438,3]
[402378398,1768669852147,-500.0,0.00016438,3]
[402378400,1768669852156,-1739.91,0.00016438,3]
[402378402,1768669852165,-1530.43,0.00016438,3]
[402378404,1768669852174,-719.6,0.00016438,3]
[402378405,1768669852183,-500.0,0.00016438,3]
[402378407,1768669852192,-813.96,0.00016438,3]
[402378409,1768669852201,-745.72,0.00016438,3]
[402378411,1768669852211,-500.0,0.00016438,3]
[402378413,1768669852221,-500.0,0.00016438,3]
[402378415,1768669852230,-500.0,0.00016438,3]
[402378417,1768669852241,-676.17,0.00016438,3]
[402378419,1768669852251,-500.0,0.00016438,3]
[402378421,1768669852260,-635.29,0.00016438,3]
[402378423,1768669852270,-500.0,0.00016438,3]
[402378425,1768669852279,-500.0,0.00016438,3]
[402378427,1768669852289,-513.00114578,0.00016438,3]
[402378429,1768669852299,-500.0,0.00016438,3]
[402378431,1768669852308,-500.0,0.00016438,3]
[402378433,1768669852318,-729.75,0.00016438,3]
[402378435,1768669852327,-530.32,0.00016438,3]
[402378437,1768669852337,-500.0,0.00016438,3]
[402378439,1768669852346,-500.0,0.00016438,3]
[402378441,1768669852355,-500.0,0.00016438,3]
[402378443,1768669852364,-500.0,0.00016438,3]
[402378445,1768669852374,-500.0,0.00016438,3]
[402378447,1768669852383,-500.0,0.00016438,3]
[402378449,1768669852392,-500.0,0.00016438,3]
[402378451,1768669852400,-806.08,0.00016438,3]
[402378453,1768669852410,-500.0,0.00016438,3]
[402378455,1768669852419,-500.0,0.00016438,3]
[402378457,1768669852427,-500.0,0.00016438,3]
[402378459,1768669852436,-500.0,0.00016438,3]
[402378461,1768669852446,-500.0,0.00016438,3]
[402378463,1768669852454,-500.0,0.00016438,3]
[402378465,1768669852463,-500.0,0.00016438,3]
[402378467,1768669852472,-500.0,0.00016438,3]
[402378469,1768669852481,-500.0,0.00016438,3]
[402378471,1768669852491,-500.0,0.00016438,3]
[402378473,1768669852500,-500.0,0.00016438,3]
[402378475,1768669852509,-775.08,0.00016438,3]
[402378477,1768669852518,-1108.08,0.00016438,3]
[402378479,1768669852527,-500.0,0.00016438,3]
[402378481,1768669852536,-1823.52,0.00016438,3]
[402378482,1768669852545,-1138.7,0.00016438,3]
[402378484,1768669852554,-500.0,0.00016438,3]
[402378486,1768669852566,-500.0,0.00016438,3]
[402378488,1768669852575,-500.0,0.00016438,3]
[402378490,1768669852584,-500.0,0.00016438,3]
[402378492,1768669852593,-500.0,0.00016438,3]
[402378494,1768669852604,-834.18,0.00016438,3]
[402378496,1768669852613,-500.0,0.00016438,3]
[402378498,1768669852622,-500.0,0.00016438,3]
[402378500,1768669852633,-500.0,0.00016438,3]
[402378502,1768669852642,-500.0,0.00016438,3]
[402378504,1768669852651,-500.0,0.00016438,3]
[402378506,1768669852661,-500.0,0.00016438,3]
[402378508,1768669852670,-500.0,0.00016438,3]
[402378510,1768669852679,-500.0,0.00016438,3]
[402378512,1768669852688,-500.0,0.00016438,3]
[402378514,1768669852697,-838.02,0.00016438,3]
[402378516,1768669852706,-500.0,0.00016438,3]
[402378518,1768669852715,-639.48,0.00016438,3]
[402378520,1768669852724,-500.0,0.00016438,3]
[402378522,1768669852734,-500.0,0.00016438,3]
[402378524,1768669852743,-995.33,0.00016438,3]
[402378526,1768669852752,-500.0,0.00016438,3]
[402378528,1768669852761,-500.0,0.00016438,3]
[402378530,1768669852771,-500.0,0.00016438,3]
[402378532,1768669852780,-500.0,0.00016438,3]
[402378534,1768669852790,-1195.06,0.00016438,3]
[402378536,1768669852800,-500.0,0.00016438,3]
[402378537,1768669852808,-500.0,0.00016438,3]
[402378539,1768669852818,-500.0,0.00016438,3]
[402378541,1768669852827,-938.53,0.00016438,3]
[402378543,1768669852836,-500.0,0.00016438,3]
[402378545,1768669852846,-500.0,0.00016438,3]
[402378547,1768669852855,-500.0,0.00016438,3]
[402378549,1768669852864,-500.0,0.00016438,3]
[402378551,1768669852874,-500.0,0.00016438,3]
[402378553,1768669852883,-500.0,0.00016438,3]
[402378555,1768669852893,-1163.03,0.00016438,3]
[402378557,1768669852903,-664.56,0.00016438,3]
[402378559,1768669852912,-500.0,0.00016438,3]
[402378561,1768669852922,-539.14,0.00016438,3]
[402378563,1768669852931,-481.66318474,0.00016438,3]
[402378565,1768669852940,-500.0,0.00016438,3]
[402378567,1768669852949,-500.0,0.00016438,3]
[402378569,1768669852958,-1311.5,0.00016438,3]
[402378571,1768669852967,-826.62,0.00016438,3]
[402378573,1768669852976,-500.0,0.00016438,3]
[402378575,1768669852986,-526.93,0.00016438,3]
[402378577,1768669852997,-500.0,0.00016438,3]
[402378579,1768669853007,-826.22,0.00016438,3]
[402378581,1768669853017,-500.0,0.00016438,3]
[402378583,1768669853027,-500.0,0.00016438,3]
[402378585,1768669853036,-622.64063856,0.00016438,3]
[402378587,1768669853046,-500.0,0.00016438,3]
[402378589,1768669853055,-665.83,0.00016438,3]
[402378591,1768669853064,-1437.78,0.00016438,3]
[402378592,1768669853074,-911.88,0.00016438,3]
[402378595,1768669853083,-500.0,0.00016438,3]
[402378596,1768669853093,-500.0,0.00016438,3]
[402378598,1768669853103,-744.04,0.00016438,3]
[402378600,1768669853112,-500.0,0.00016438,3]
[402378602,1768669853121,-500.0,0.00016438,3]
[402378604,1768669853131,-760.56,0.00016438,3]
[402378606,1768669853140,-1617.66,0.00016438,3]
[402378608,1768669853150,-500.0,0.00016438,3]
[402378610,1768669853159,-989.16,0.00016438,3]
[402378612,1768669853168,-548.8,0.00016438,3]
[402378614,1768669853178,-1392.58,0.00016438,3]
[402378616,1768669853187,-500.0,0.00016438,3]
[402378618,1768669853197,-500.0,0.00016438,3]
[402378620,1768669853206,-500.0,0.00016438,3]
[402378622,1768669853216,-500.0,0.00016438,3]
[402378624,1768669853225,-500.0,0.00016438,3]
[402378626,1768669853234,-500.0,0.00016438,3]
[402378628,1768669853244,-500.0,0.00016438,3]
[402378630,1768669853253,-500.0,0.00016438,3]
[402378631,1768669853263,-1290.77,0.00016438,3]
[402378634,1768669853274,-500.0,0.00016438,3]
[402378635,1768669853283,-500.0,0.00016438,3]
[402378637,1768669853292,-1139.26,0.00016438,3]
[402378639,1768669853302,-500.0,0.00016438,3]
[402378641,1768669853311,-500.0,0.00016438,3]
[402378643,1768669853321,-500.0,0.00016438,3]
[402378645,1768669853330,-563.28,0.00016438,3]
[402378647,1768669853340,-1235.64,0.00016438,3]
[402378649,1768669853350,-1363.63,0.00016438,3]
[402378651,1768669853360,-500.0,0.00016438,3]
[402378653,1768669853369,-540.01468021,0.00016438,3]
[402378655,1768669853379,-500.0,0.00016438,3]
[402378657,1768669853390,-500.0,0.00016438,3]
[402378659,1768669853400,-500.0,0.00016438,3]
[402378660,1768669853409,-584.78,0.00016438,3]
[402378662,1768669853419,-281.96847602,0.00016438,3]
[402378664,1768669853428,-591.12,0.00016438,3]
[402378667,1768669853439,-500.0,0.00016438,3]
[402378669,1768669853449,-500.0,0.00016438,3]
[402378671,1768669853458,-500.0,0.00016438,3]
[402378673,1768669853468,-500.0,0.00016438,3]
[402378674,1768669853478,-500.0,0.00016438,3]
[402378676,1768669853487,-500.0,0.00016438,3]
[402378678,1768669853496,-500.0,0.00016438,3]
[402378680,1768669853505,-500.0,0.00016438,3]
[402378682,1768669853514,-500.0,0.00016438,3]
[402378684,1768669853524,-500.0,0.00016438,3]
[402378686,1768669853532,-532.55606123,0.00016438,3]
[402378688,1768669853541,-500.0,0.00016438,3]
[402378690,1768669853551,-565.59190615,0.00016438,3]
[402378691,1768669853562,-500.0,0.00016438,3]
[402378692,1768669853571,-500.0,0.00016438,3]
[402378693,1768669853582,-500.0,0.00016438,3]
[402378694,1768669853592,-500.0,0.00016438,3]
[402378695,1768669853602,-500.0,0.00016438,3]
[402378696,1768669853612,-500.0,0.00016438,3]
[402378697,1768669853622,-500.0,0.00016438,3]
[402378698,1768669853632,-659.9,0.00016438,3]
[402378699,1768669853642,-500.0,0.00016438,3]
[402378700,1768669853652,-500.0,0.00016438,3]
[402378701,1768669853662,-562.53,0.00016438,3]
[402378702,1768669853672,-536.50517922,0.00016438,3]
[402378703,1768669853682,-1216.62,0.00016438,3]
[402378704,1768669853691,-500.0,0.00016438,3]
[402378705,1768669853701,-1459.54,0.00016438,3]
[402378706,1768669853711,-500.0,0.00016438,3]
[402378707,1768669853721,-500.0,0.00016438,3]
[402378708,1768669853731,-1408.31,0.00016438,3]
[402378709,1768669853741,-500.0,0.00016438,3]
[402378710,1768669853751,-500.0,0.00016438,3]
[402378711,1768669853761,-500.0,0.00016438,3]
[402378712,1768669853771,-523.99827377,0.00016438,3]
[402378713,1768669853780,-500.0,0.00016438,3]
[402378714,1768669853790,-1004.35,0.00016438,3]
[402378715,1768669853800,-2141.92,0.00016438,3]
[402378716,1768669853810,-500.0,0.00016438,3]
[402378717,1768669853820,-500.0,0.00016438,3]
[402378718,1768669853829,-1392.79,0.00016438,3]
[402378719,1768669853839,-500.0,0.00016438,3]
[402378720,1768669853849,-500.0,0.00016438,3]
[402378721,1768669853859,-500.0,0.00016438,3]
[402378722,1768669853868,-500.0,0.00016438,3]
[402378724,1768669853878,-1651.69,0.00016438,3]
[402378726,1768669853887,-500.0,0.00016438,3]
[402378728,1768669853897,-500.0,0.00016438,3]
[402378730,1768669853907,-533.67555497,0.00016438,3]
[402378732,1768669853916,-500.0,0.00016438,3]
[402378734,1768669853926,-500.0,0.00016438,3]
[402378736,1768669853936,-500.0,0.00016438,3]
[402378737,1768669853947,-500.0,0.00016438,3]
[402378739,1768669853956,-500.0,0.00016438,3]
[402378741,1768669853965,-500.0,0.00016438,3]
[402378743,1768669853975,-500.0,0.00016438,3]
[402378745,1768669853985,-500.0,0.00016438,3]
[402378747,1768669853994,-500.0,0.00016438,3]
[402378749,1768669854003,-1022.52,0.00016438,3]
[402378751,1768669854013,-890.63,0.00016438,3]
[402378753,1768669854022,-500.0,0.00016438,3]
[402378755,1768669854031,-524.68,0.00016438,3]
[402378757,1768669854040,-525.47,0.00016438,3]
[402378759,1768669854049,-500.0,0.00016438,3]
[402378761,1768669854059,-500.0,0.00016438,3]
[402378763,1768669854069,-1952.81,0.00016438,3]
[402378765,1768669854079,-500.0,0.00016438,3]
[402378767,1768669854088,-500.0,0.00016438,3]
[402378769,1768669854099,-211.62283602,0.00016438,3]
[402378771,1768669854108,-702.75,0.00016438,3]
[402378773,1768669854117,-500.0,0.00016438,3]
[402378775,1768669854126,-1977.43,0.00016438,3]
[402378776,1768669854136,-633.32,0.00016438,3]
[402378778,1768669854145,-500.0,0.00016438,3]
[402378780,1768669854155,-500.0,0.00016438,3]
[402378782,1768669854163,-500.0,0.00016438,3]
[402378784,1768669854176,-769.6,0.00016438,3]
[402378786,1768669854186,-500.0,0.00016438,3]
[402378788,1768669854195,-500.0,0.00016438,2]
[402378790,1768669854205,-500.0,0.00016438,3]
[402378792,1768669854215,-500.0,0.00016438,3]
[402378794,1768669854224,-500.0,0.00016438,3]
[402378796,1768669854233,-500.0,0.00016438,3]
[402378798,1768669854243,-526.3812206,0.00016438,3]
[402378800,1768669854252,-500.0,0.00016438,3]
[402378802,1768669854261,-500.0,0.00016438,3]
[402378804,1768669854270,-500.0,0.00016438,3]
[402378806,1768669854280,-808.67,0.00016438,3]
[402378808,1768669854290,-500.0,0.00016438,3]
[402378810,1768669854299,-500.0,0.00016438,3]
[402378812,1768669854309,-505.87,0.00016438,3]
[402378814,1768669854318,-500.0,0.00016438,3]
[402378816,1768669854328,-1351.71,0.00016438,3]
[402378818,1768669854337,-500.0,0.00016438,3]
[402378820,1768669854346,-500.0,0.00016438,3]
[402378822,1768669854355,-1112.95,0.00016438,3]
[402378824,1768669854365,-500.0,0.00016438,3]
[402378826,1768669854375,-1241.58,0.00016438,3]
[402378828,1768669854385,-263.30228,0.00016438,2]
[402378830,1768669854394,-500.0,0.00016438,3]
[402378832,1768669854403,-500.0,0.00016438,3]
[402378834,1768669854422,-714.16,0.00016438,3]
[402378836,1768669854442,-263.30228,0.00016438,2]
[402378838,1768669854453,-500.0,0.00016438,3]
[402378839,1768669854462,-500.0,0.00016438,3]
[402378841,1768669854471,-263.30228,0.00016438,2]
[402378843,1768669854481,-1757.22,0.00016438,3]
[402378845,1768669854490,-500.0,0.00016438,3]
[402378848,1768669854500,-263.302277,0.00016438,2]
[402378849,1768669854509,-450.64316952,0.00016438,3]
[402378851,1768669854518,-500.0,0.00016438,3]
[402378853,1768669854527,-856.76,0.00016438,3]
[402378855,1768669854537,-500.0,0.00016438,3]
[402378857,1768669854546,-208.2,0.00016438,2]
[402378859,1768669854555,-500.0,0.00016438,3]
[402378861,1768669854570,-576.09,0.00016438,3]
[402378863,1768669854579,-500.0,0.00016438,3]
[402378865,1768669854588,-1716.41,0.00016438,3]
[402378867,1768669854598,-762.99,0.00016438,3]
[402378869,1768669854610,-974.44,0.00016438,3]
[402378871,1768669854619,-500.0,0.00016438,3]
[402378873,1768669854628,-500.0,0.00016438,3]
[402378875,1768669854641,-500.0,0.00016438,3]
[402378876,1768669854650,-500.0,0.00016438,3]
[402378878,1768669854659,-500.0,0.00016438,3]
[402378880,1768669854668,-500.0,0.00016438,3]
[402378882,1768669854677,-500.0,0.00016438,3]
[402378883,1768669854686,-500.0,0.00016438,3]
[402378885,1768669854696,-500.0,0.00016438,3]
[402378887,1768669854706,-500.0,0.00016438,3]
[402378889,1768669854716,-605.29,0.00016438,3]
[402378891,1768669854726,-500.0,0.00016438,3]
[402378893,1768669854735,-500.0,0.00016438,3]
[402378895,1768669854746,-500.0,0.00016438,3]
[402378897,1768669854756,-534.13,0.00016438,3]
[402378899,1768669854766,-500.0,0.00016438,3]
[402378901,1768669854775,-1502.15,0.00016438,3]
[402378903,1768669854785,-500.0,0.00016438,2]
[402378905,1768669854795,-364.95482423,0.00016438,2]
[402378907,1768669854804,-500.0,0.00016438,2]
[402378909,1768669854813,-500.0,0.00016438,2]
[402378911,1768669854823,-500.0,0.00016438,3]
[402378913,1768669854833,-778.71,0.00016438,3]
[402378915,1768669854843,-1453.27,0.00016438,3]
[402378917,1768669854853,-1503.68,0.00016438,3]
[402378919,1768669854864,-500.0,0.00016438,3]
[402378921,1768669854873,-618.02349392,0.00016438,3]
[402378923,1768669854883,-500.0,0.00016438,3]
[402378925,1768669854893,-500.0,0.00016438,3]
[402378927,1768669854903,-500.0,0.00016438,3]
[402378929,1768669854912,-500.0,0.00016438,3]
[402378931,1768669854922,-500.0,0.00016438,3]
[402378933,1768669854932,-7566.04,0.00016438,3]
[402378935,1768669854942,-2006.78,0.00016438,3]
[402378937,1768669854951,-709.42,0.00016438,3]
[402378939,1768669854961,-2532.74,0.00016438,3]
[402378941,1768669854971,-500.0,0.00016438,3]
[402378943,1768669854980,-500.0,0.00016438,3]
[402378945,1768669854990,-500.0,0.00016438,3]
[402378947,1768669855000,-500.0,0.00016438,3]
[402378949,1768669855009,-500.0,0.00016438,3]
[402378951,1768669855020,-500.0,0.00016438,3]
[402378953,1768669855030,-500.0,0.00016438,3]
[402378955,1768669855040,-876.59,0.00016438,3]
[402378957,1768669855049,-500.0,0.00016438,3]
[402378959,1768669855058,-500.0,0.00016438,3]
[402378961,1768669855068,-500.0,0.00016438,3]
[402378963,1768669855077,-500.0,0.00016438,3]
[402378965,1768669855087,-151.0,0.00016438,2]
[402378967,1768669855097,-500.0,0.00016438,3]
[402378969,1768669855106,-500.0,0.00016438,3]
[402378971,1768669855116,-1597.27,0.00016438,3]
[402378973,1768669855126,-151.0,0.00016438,2]
[402378975,1768669855136,-500.0,0.00016438,3]
[402378977,1768669855146,-500.0,0.00016438,3]
[402378979,1768669855155,-731.96,0.00016438,3]
[402378981,1768669855166,-500.0,0.00016438,3]
[402378983,1768669855176,-500.0,0.00016438,3]
[402378985,1768669855186,-500.0,0.00016438,3]
[402378987,1768669855195,-500.0,0.00016438,3]
[402378989,1768669855205,-887.59,0.00016438,3]
[402378991,1768669855216,-500.0,0.00016438,3]
[402378993,1768669855225,-577.24,0.00016438,3]
[402378995,1768669855235,-503.06859357,0.00016438,3]
[402378997,1768669855246,-598.89865208,0.00016438,3]
[402378998,1768669855255,-771.67,0.00016438,3]
[402379000,1768669855265,-500.0,0.00016438,3]
[402379002,1768669855274,-2025.2,0.00016438,3]
[402379004,1768669855284,-500.0,0.00016438,3]
[402379006,1768669855294,-500.0,0.00016438,3]
[402379008,1768669855303,-1494.01,0.00016438,3]
[402379010,1768669855313,-500.0,0.00016438,3]
[402379012,1768669855323,-806.92,0.00016438,3]
[402379014,1768669855333,-500.0,0.00016438,3]
[402379016,1768669855343,-500.0,0.00016438,3]
[402379018,1768669855352,-500.0,0.00016438,3]
[402379020,1768669855362,-500.0,0.00016438,3]
[402379022,1768669855372,-582.23,0.00016438,3]
[402379024,1768669855381,-500.0,0.00016438,3]
[402379026,1768669855390,-877.12,0.00016438,3]
[402379029,1768669855401,-890.53,0.00016438,3]
[402379031,1768669855411,-1695.64,0.00016438,3]
[402379033,1768669855421,-500.0,0.00016438,3]
[402379035,1768669855436,-648.78,0.00016438,3]
[402379037,1768669855445,-1396.54,0.00016438,3]
[402379039,1768669855455,-500.0,0.00016438,3]
[402379041,1768669855464,-183.73779352,0.00016438,3]
[402379043,1768669855474,-822.65,0.00016438,3]
[402379045,1768669855483,-500.0,0.00016438,3]
[402379047,1768669855492,-1860.69,0.00016438,3]
[402379048,1768669855502,-563.95,0.00016438,3]
[402379050,1768669855512,-500.0,0.00016438,3]
[402379052,1768669855522,-500.0,0.00016438,3]
[402379055,1768669855532,-1121.41,0.00016438,3]
[402379057,1768669855542,-681.26,0.00016438,3]
[402379058,1768669855551,-500.0,0.00016438,3]
[402379060,1768669855564,-500.0,0.00016438,3]
[402379063,1768669855574,-1574.77,0.00016438,3]
[402379064,1768669855584,-500.0,0.00016438,3]
[402379067,1768669855594,-710.07,0.00016438,3]
[402379069,1768669855605,-593.25,0.00016438,3]
[402379071,1768669855615,-819.68,0.00016438,3]
[402379073,1768669855626,-547.02,0.00016438,3]
[402379075,1768669855637,-500.0,0.00016438,3]
[402379077,1768669855646,-541.55,0.00016438,3]
[402379079,1768669855656,-898.93,0.00016438,3]
[402379081,1768669855666,-500.0,0.00016438,3]
[402379083,1768669855675,-500.0,0.00016438,3]
[402379085,1768669855685,-500.0,0.00016438,3]
[402379087,1768669855695,-500.0,0.00016438,3]
[402379089,1768669855705,-500.0,0.00016438,3]
[402379091,1768669855715,-514.7,0.00016438,3]
[402379093,1768669855725,-332.91217118,0.00016438,3]
[402379095,1768669855735,-500.0,0.00016438,3]
[402379097,1768669855744,-1717.69,0.00016438,3]
[402379099,1768669855754,-545.8035631,0.00016438,3]
[402379101,1768669855765,-500.0,0.00016438,3]
[402379103,1768669855774,-1181.35,0.00016438,3]
[402379105,1768669855784,-500.0,0.00016438,3]
[402379107,1768669855793,-500.0,0.00016438,3]
[402379109,1768669855803,-870.07,0.00016438,3]
[402379111,1768669855813,-1177.53,0.00016438,3]
[402379113,1768669855822,-500.0,0.00016438,3]
[402379115,1768669855832,-500.0,0.00016438,3]
[402379117,1768669855842,-500.0,0.00016438,3]
[402379119,1768669855852,-1477.98,0.00016438,3]
[402379121,1768669855862,-548.99,0.00016438,3]
[402379123,1768669855872,-1364.59,0.00016438,3]
[402379125,1768669855881,-500.0,0.00016438,3]
[402379127,1768669855891,-500.0,0.00016438,3]
[402379129,1768669855901,-500.0,0.00016438,3]
[402379131,1768669855912,-500.0,0.00016438,3]
[402379133,1768669855922,-632.04690666,0.00016438,3]
[402379135,1768669855932,-500.0,0.00016438,3]
[402379137,1768669855941,-1272.0,0.00016438,3]
[402379139,1768669855951,-500.0,0.00016438,3]
[402379141,1768669855960,-500.0,0.00016438,3]
[402379143,1768669855970,-500.0,0.00016438,3]
[402379145,1768669855979,-1023.93,0.00016438,3]
[402379147,1768669855989,-1022.84,0.00016438,3]
[402379149,1768669855998,-500.0,0.00016438,3]
[402379151,1768669856010,-516.54,0.00016438,3]
[402379153,1768669856020,-500.0,0.00016438,3]
[402379155,1768669856029,-3403.79,0.00016438,3]
[402379157,1768669856039,-770.4,0.00016438,3]
[402379159,1768669856049,-500.0,0.00016438,3]
[402379161,1768669856059,-1414.69,0.00016438,3]
[402379163,1768669856068,-500.0,0.00016438,3]
[402379165,1768669856078,-526.17897158,0.00016438,3]
[402379167,1768669856087,-500.0,0.00016438,3]
[402379169,1768669856097,-500.0,0.00016438,3]
[402379171,1768669856107,-690.86,0.00016438,3]
[402379173,1768669856116,-743.92,0.00016438,3]
[402379175,1768669856126,-479.17924292,0.00016438,2]
[402379177,1768669856136,-500.0,0.00016438,3]
[402379179,1768669856147,-500.0,0.00016438,3]
[402379181,1768669856157,-1368.68,0.00016438,3]
[402379183,1768669856166,-692.37,0.00016438,3]
[402379185,1768669856176,-500.0,0.00016438,3]
[402379187,1768669856186,-246.0,0.00016438,3]
[402379189,1768669856195,-500.0,0.00016438,3]
[402379191,1768669856205,-500.0,0.00016438,3]
[402379193,1768669856215,-674.52,0.00016438,3]
[402379195,1768669856225,-547.26,0.00016438,3]
[402379196,1768669856235,-500.0,0.00016438,3]
[402379197,1768669856244,-500.0,0.00016438,3]
[402379198,1768669856254,-500.0,0.00016438,3]
[402379199,1768669856263,-500.0,0.00016438,3]
[402379200,1768669856272,-500.0,0.00016438,3]
[402379201,1768669856281,-500.0,0.00016438,3]
[402379202,1768669856291,-501.47481174,0.00016438,3]
[402379203,1768669856300,-362.08497691,0.00016438,3]
[402379204,1768669856310,-467.49360859,0.00016438,3]
[402379205,1768669856319,-500.0,0.00016438,3]
[402379206,1768669856329,-774.57,0.00016438,3]
[402379207,1768669856338,-1114.84,0.00016438,3]
[402379209,1768669856348,-500.0,0.00016438,3]
[402379211,1768669856358,-1568.81,0.00016438,3]
[402379213,1768669856368,-500.0,0.00016438,3]
[402379215,1768669856378,-500.0,0.00016438,3]
[402379217,1768669856387,-500.0,0.00016438,3]
[402379219,1768669856396,-14376.21,0.00016438,3]
[402379221,1768669856406,-1380.77,0.00016438,3]
[402379223,1768669856416,-500.0,0.00016438,3]
[402379225,1768669856427,-500.0,0.00016438,3]
[402379227,1768669856438,-309.96810054,0.00016438,3]
[402379229,1768669856447,-500.0,0.00016438,3]
[402379231,1768669856457,-2392.5,0.00016438,2]
[402379233,1768669856467,-2392.5,0.00016438,2]
[402379236,1768669856478,-2392.5,0.00016438,2]
[402379238,1768669856488,-2392.5,0.00016438,2]
[402379240,1768669856498,-2392.5,0.00016438,2]
[402379242,1768669856510,-2392.5,0.00016438,2]
[402379244,1768669856520,-2392.5,0.00016438,2]
[402379246,1768669856530,-500.0,0.00016438,3]